lending/lending_fUSD_20240703
["ID","MTS","AMOUNT","RATE_DAILY","PERIOD"]
[330948721,1719970244003,-25245.6377354,0.00021068,6]
[330948731,1719970246810,-2534.73176485,0.00021068,6]
[330948733,1719970246822,-255.03153676,0.00021068,6]
[330948734,1719970246880,-747.54487454,0.00021068,6]
[330948735,1719970246900,-256.98553303,0.00021068,6]
[330948782,1719971332429,-547.4,0.00011304,2]
[330948797,1719971385926,155.09033304,0.00011304,2]
[330948799,1719971407426,19825.32715187,0.00011304,2]
[330948804,1719971417800,555.74620253,0.00011304,2]
[330948825,1719971432668,-158.69986825,0.0001221,2]
[330948826,1719971432678,-976.0,0.00012308,2]
[330948827,1719971432688,-486.67434874,0.0001251,2]
[330948828,1719971432697,-158.69986823,0.00013084,2]
[330948829,1719971432707,-488.19274503,0.00013448,2]
[330948830,1719971432719,-657.80725497,0.00013448,2]
[330948831,1719971432728,-68.04137729,0.00013568,2]
[330948832,1719971432900,-227.86427142,0.00012208,2]
[330948833,1719971432910,-479.35862271,0.00013568,2]
[330948834,1719971432920,-187.03,0.00013588,2]
[330948835,1719971432930,-150.0,0.00013671,2]
[330948836,1719971432940,-183.8619262,0.00013678,2]
[330948864,1719971439224,-227.86427141,0.00012309,2]
[330948866,1719971439234,-66.1380738,0.00013678,2]
[330948868,1719971439245,-164.44,0.00013678,2]
[330948870,1719971439256,-605.18180061,0.00013681,2]
[330948873,1719971439268,-446.45819939,0.00013681,2]
[330948875,1719971439280,-300.0,0.00013698,2]
[330948876,1719971439290,-185.44,0.00013699,2]
[330948878,1719971439303,-1951.37,0.00013699,2]
[330948881,1719971439313,-150.05642858,0.00013699,2]
[330948882,1719971439323,-7590.45601829,0.00013702,2]
[330948885,1719971439334,-392.5,0.00013754,2]
[330948887,1719971439344,-150.0,0.00013899,2]
[330948889,1719971439358,-176.2221,0.000139,2]
[330948891,1719971439369,-3489.3284,0.000139,2]
[330948893,1719971439379,-487.1417,0.000139,2]
[330948895,1719971439390,-200.0,0.000139,5]
[330948897,1719971439400,-5259.7448,0.000139,2]
[330948899,1719971439411,-971.50958344,0.00013958,2]
[330948901,1719971439420,-158.69986823,0.00013958,2]
[330948903,1719971439430,-1187.02439801,0.00013958,2]
[330948905,1719971439440,-200.0,0.00013968,2]
[330948907,1719971439450,-181.40672795,0.0001399,2]
[330948909,1719971439460,-841456.80124693,0.00014,2]
[330948911,1719971439470,-168.18,0.00014057,2]
[330948913,1719971439479,-951.0,0.00014248,2]
[330948915,1719971439489,-5543.0,0.00014608,3]
[330948917,1719971439499,-185.44,0.00014612,2]
[330948919,1719971439510,-187.17,0.00014755,2]
[330948921,1719971439522,-500.0,0.000148,5]
[330948923,1719971439533,-971.5095834,0.00014831,2]
[330948925,1719971439547,-7141.40254403,0.000149,2]
[330948927,1719971439559,-700.0,0.000149,5]
[330948929,1719971439573,-434.66114978,0.00014999,2]
[330948931,1719971439584,-224.19376907,0.00014999,2]
[330948933,1719971439594,-500.0,0.00014999,2]
[330948935,1719971439605,-456.27060164,0.00014999,2]
[330948937,1719971439616,-500.0,0.00014999,2]
[330948940,1719971439628,-500.0,0.00014999,2]
[330948942,1719971439638,-500.0,0.00014999,2]
[330948944,1719971439649,-500.0,0.00014999,2]
[330948946,1719971439660,-500.0,0.00014999,2]
[330948948,1719971439670,-500.0,0.00014999,2]
[330948950,1719971439680,-500.0,0.00014999,2]
[330948952,1719971439690,-500.0,0.00014999,2]
[330948954,1719971439700,-500.0,0.00014999,2]
[330948956,1719971439710,-500.0,0.00014999,2]
[330948958,1719971439720,-320.76286786,0.00014999,2]
[330948960,1719971439730,-500.0,0.00014999,2]
[330948962,1719971439741,-500.0,0.00014999,2]
[330948964,1719971439751,-500.0,0.00014999,2]
[330948966,1719971439761,-500.0,0.00014999,2]
[330948968,1719971439773,-500.0,0.00014999,2]
[330948970,1719971439784,-500.0,0.00014999,2]
[330948972,1719971439795,-500.0,0.00014999,2]
[330948974,1719971439805,-500.0,0.00014999,2]
[330948976,1719971439815,-500.0,0.00014999,2]
[330948978,1719971439824,-631.75066887,0.00014999,2]
[330948980,1719971439834,-349.79504445,0.00014999,2]
[330948982,1719971439844,-480.09453022,0.00014999,2]
[330948984,1719971439854,-500.0,0.00014999,2]
[330948986,1719971439864,-500.0,0.00014999,2]
[330948988,1719971439873,-500.0,0.00014999,2]
[330948990,1719971439883,-500.0,0.00014999,2]
[330948992,1719971439894,-500.0,0.00014999,2]
[330948994,1719971439903,-500.0,0.00014999,2]
[330948996,1719971439913,-500.0,0.00014999,2]
[330948998,1719971439923,-500.0,0.00014999,2]
[330949000,1719971439933,-500.0,0.00014999,2]
[330949002,1719971439943,-500.0,0.00014999,2]
[330949004,1719971439954,-293.43820831,0.00014999,2]
[330949006,1719971439963,-500.0,0.00014999,2]
[330949008,1719971439973,-500.0,0.00014999,2]
[330949010,1719971439983,-500.0,0.00014999,2]
[330949012,1719971439992,-500.0,0.00014999,2]
[330949014,1719971440002,-500.0,0.00014999,2]
[330949016,1719971440012,-253.6367402,0.00014999,2]
[330949018,1719971440023,-500.0,0.00014999,2]
[330949020,1719971440033,-500.0,0.00014999,2]
[330949022,1719971440043,-500.0,0.00014999,2]
[330949024,1719971440054,-500.0,0.00014999,2]
[330949026,1719971440068,-500.0,0.00014999,2]
[330949028,1719971440078,-500.0,0.00014999,2]
[330949029,1719971440088,-500.0,0.00014999,2]
[330949030,1719971440098,-500.0,0.00014999,2]
[330949031,1719971440108,-240.79110319,0.00014999,2]
[330949032,1719971440119,-5013.60602684,0.00014999,2]
[330949033,1719971440130,-800.31144261,0.00014999,2]
[330949034,1719971440141,-1224403.54526344,0.00015,2]
[330949035,1719971440151,-29301.96552728,0.00015,2]
[330949036,1719971440162,-420.0,0.00015011,2]
[330949037,1719971440172,-154.28298181,0.00015037,2]
[330949038,1719971440182,-240.0,0.00015192,2]
[330949039,1719971440192,-216.64,0.00015267,2]
[330949040,1719971440202,-392.5,0.00015473,2]
[330949041,1719971440212,-187.17,0.00015493,2]
[330949042,1719971440222,-185.44,0.00015525,2]
[330949043,1719971440232,-7141.40254399,0.00015545,2]
[330949044,1719971440242,-500.0,0.00015592,2]
[330949045,1719971440252,-500.0,0.00015592,2]
[330949046,1719971440262,-500.0,0.00015592,2]
[330949047,1719971440272,-500.0,0.00015592,2]
[330949048,1719971440282,-971.5095834,0.00015704,2]
[330949049,1719971440292,-547.4,0.00015832,2]
[330949050,1719971440302,-572.68090284,0.0001584,2]
[330949051,1719971440312,-7141.40254399,0.00016191,2]
[330949052,1719971440321,-694.0,0.000162,3]
[330949053,1719971440331,-2604.0,0.000162,3]
[330949054,1719971440341,-187.17,0.0001623,2]
[330949055,1719971440351,-307.99289133,0.00016315,2]
[330949056,1719971440361,-3346.0,0.000164,3]
[330949057,1719971440371,-166.5,0.00016438,2]
[330949058,1719971440381,-185.44,0.00016438,2]
[330949059,1719971440391,-587.0,0.00016451,2]
[330949060,1719971440401,-971.5095834,0.00016578,2]
[330949061,1719971440414,-384.0,0.00016609,2]
[330949062,1719971440423,-166.5,0.00016783,2]
[330949063,1719971440433,-11483.0,0.000168,5]
[330949064,1719971440443,-7141.40254399,0.00016836,2]
[330949065,1719971440452,-1662.024,0.00016952,2]
[330949066,1719971440462,-1837.691,0.00016952,2]
[330949069,1719971440480,-1275.0,0.00016952,2]
[330949071,1719971440495,-310.638,0.00016952,2]
[330949073,1719971440510,-817.056,0.00016952,2]
[330949074,1719971440523,-449.809,0.00016952,2]
[330949075,1719971440534,-1309.413,0.00016952,2]
[330949076,1719971440548,-2416.0,0.00016952,2]
[330949077,1719971440564,-1992.786,0.00016952,2]
[330949078,1719971440577,-3213.188,0.00016952,2]
[330949079,1719971440592,-550.066,0.00016952,2]
[330949080,1719971440607,-283.0,0.00016952,2]
[330949081,1719971440622,-5809.0,0.00016952,2]
[330949082,1719971440637,-1203.546,0.00016952,2]
[330949083,1719971440652,-150.118,0.00016952,2]
[330949084,1719971440666,-5176.0,0.00016952,2]
[330949085,1719971440681,-1663.0,0.00016952,2]
[330949086,1719971440696,-291.0,0.00016952,2]
[330949087,1719971440711,-38228.0,0.00016952,2]
[330949088,1719971440725,-187.17,0.00016968,2]
[330949089,1719971440739,-166.5,0.00017128,2]
[330949090,1719971440750,-392.5,0.00017192,2]
[330949091,1719971440762,-500.0,0.00017236,2]
[330949092,1719971440778,-500.0,0.00017236,2]
[330949093,1719971440791,-503.90868242,0.00017236,2]
[330949094,1719971440805,-605.71941719,0.00017236,2]
[330949095,1719971440819,-5000.0,0.00017444,2]
[330949096,1719971440832,-971.5095834,0.00017451,2]
[330949097,1719971440846,-935.07,0.00017461,2]
[330949098,1719971440862,-166.5,0.00017472,2]
[330949099,1719971440874,-7141.40254399,0.00017482,2]
[330949100,1719971440885,-259.8,0.00017487,2]
[330949101,1719971440896,-4204.35067844,0.00017533,2]
[330949102,1719971440908,-187.17,0.00017706,2]
[330949103,1719971440922,-166.5,0.00017817,2]
[330949104,1719971440937,-8723.83546185,0.00017999,2]
[330949105,1719971440948,-823.0,0.00018028,2]
[330949106,1719971440960,-1657.99253549,0.00018081,2]
[330949107,1719971440972,-547.4,0.00018096,2]
[330949108,1719971440989,-7141.40254399,0.00018127,2]
[330949109,1719971441001,-614.0,0.00018152,2]
[330949110,1719971441012,-166.5,0.00018162,2]
[330949111,1719971441024,-971.5095834,0.00018324,2]
[330949112,1719971441048,-500.0,0.00018332,2]
[330949113,1719971441063,-500.0,0.00018332,2]
[330949114,1719971441077,-166.5,0.00018507,2]
[330949115,1719971441091,-934.0326335,0.00018543,2]
[330949116,1719971441127,-154.81402549,0.00018602,2]
[330949117,1719971441141,-151.84144189,0.00018627,2]
[330949118,1719971441157,-934.0326335,0.00018632,2]
[330949119,1719971441172,-154.81548551,0.00018678,2]
[330949120,1719971441186,-608.71384337,0.00018696,2]
[330949121,1719971441201,-934.0326335,0.00018707,2]
[330949122,1719971441215,-155.97260672,0.00018712,2]
[330949123,1719971441229,-348.74721044,0.00018721,2]
[330949124,1719971441243,-150.0956725,0.00018723,2]
[330949125,1719971441257,-151.84144189,0.0001874,2]
[330949126,1719971441269,-155.97260672,0.00018746,2]
[330949127,1719971441286,-155.0,0.00018764,2]
[330949128,1719971441301,-7141.40254399,0.00018773,2]
[330949129,1719971441314,-348.74721044,0.00018788,2]
[330949130,1719971441328,-934.0326335,0.00018802,2]
[330949131,1719971441342,-221.13782654,0.00018829,2]
[330949132,1719971441355,-159.53759203,0.00018835,2]
[330949133,1719971441369,-623.01916795,0.00018835,2]
[330949134,1719971441382,-159.73,0.00018849,30]
[330949135,1719971441395,-166.5,0.00018852,2]
[330949136,1719971441407,-688.63871007,0.00018853,2]
[330949137,1719971441420,-152.71946826,0.00018859,2]
[330949138,1719971441432,-366.65876706,0.00018864,2]
[330949139,1719971441444,-280.89880207,0.00018864,2]
[330949140,1719971441456,-155.65396603,0.00018864,2]
[330949141,1719971441468,-4383.88,0.00018872,2]
[330949142,1719971441480,-4383.88,0.00018877,2]
[330949143,1719971441492,-348.74721044,0.00018877,2]
[330949144,1719971441504,-4383.88,0.00018881,2]
[330949145,1719971441516,-150.57685201,0.00018882,2]
[330949146,1719971441527,-4383.88,0.00018886,2]
[330949147,1719971441540,-4383.88,0.00018891,2]
[330949148,1719971441552,-4383.88,0.00018896,2]
[330949149,1719971441565,-227.12084219,0.00018899,2]
[330949150,1719971441581,-155.19621563,0.00018899,2]
[330949151,1719971441594,-1000.0,0.000189,6]
[330949152,1719971441605,-452.91,0.000189,2]
[330949153,1719971441617,-452.91,0.000189,2]
[330949154,1719971441629,-452.91,0.000189,2]
[330949155,1719971441641,-452.91,0.000189,2]
[330949156,1719971441652,-452.91,0.000189,2]
[330949157,1719971441665,-452.91,0.000189,2]
[330949158,1719971441677,-452.91,0.000189,2]
[330949159,1719971441688,-452.91,0.000189,2]
[330949160,1719971441700,-452.91,0.000189,2]
[330949161,1719971441712,-452.91,0.000189,2]
[330949162,1719971441724,-452.91,0.000189,2]
[330949163,1719971441735,-452.91,0.000189,2]
[330949164,1719971441747,-452.91,0.000189,2]
[330949165,1719971441759,-452.91,0.000189,2]
[330949166,1719971441773,-452.91,0.000189,2]
[330949167,1719971441785,-452.91,0.000189,2]
[330949168,1719971441796,-452.91,0.000189,2]
[330949169,1719971441808,-452.91,0.000189,2]
[330949170,1719971441821,-452.91,0.000189,2]
[330949171,1719971441838,-452.91,0.000189,2]
[330949172,1719971441853,-452.91,0.000189,2]
[330949173,1719971441866,-452.91,0.000189,2]
[330949174,1719971441880,-452.91,0.000189,2]
[330949175,1719971441893,-452.91,0.000189,2]
[330949176,1719971441907,-452.91,0.000189,2]
[330949177,1719971441921,-4383.88,0.00018901,2]
[330949178,1719971441935,-4383.88,0.00018906,2]
[330949179,1719971441948,-392.5,0.00018911,2]
[330949180,1719971441960,-4383.88,0.00018911,2]
[330949181,1719971441972,-4383.88,0.00018916,2]
[330949182,1719971441984,-155.16470591,0.00018919,2]
[330949183,1719971441997,-158.59051529,0.00018919,2]
[330949184,1719971442009,-1763.9509643,0.00018919,2]
[330949185,1719971442023,-266.96889738,0.00018919,2]
[330949186,1719971442036,-1231.16470023,0.00018919,2]
[330949187,1719971442048,-4383.88,0.00018921,2]
[330949188,1719971442059,-4383.88,0.00018926,2]
[330949189,1719971442072,-4383.88,0.00018931,2]
[330949190,1719971442083,-4383.88,0.00018936,2]
[330949191,1719971442095,-4383.88,0.00018941,2]
[330949192,1719971442107,-4383.88,0.00018946,2]
[330949193,1719971442118,-4383.88,0.00018951,2]
[330949195,1719971442130,-4383.88,0.00018956,2]
[330949197,1719971442141,-166.66666666,0.00018958,2]
[330949199,1719971442152,-4383.88,0.00018961,2]
[330949202,1719971442163,-4383.88,0.00018966,2]
[330949204,1719971442175,-166.66666666,0.00018966,2]
[330949206,1719971442186,-934.0326335,0.00018975,2]
[330949208,1719971442198,-155.18482938,0.00018999,2]
[330949211,1719971442210,-1289.44083379,0.00018999,2]
[330949213,1719971442221,-155.15073946,0.00018999,2]
[330949215,1719971442232,-1085.86866109,0.00018999,2]
[330949217,1719971442243,-162.77339649,0.00018999,2]
[330949220,1719971442254,-787.65802887,0.00019,2]
[330949222,1719971442266,-154.20267466,0.00019004,2]
[330949224,1719971442278,-348.74721044,0.00019027,2]
[330949226,1719971442290,-251.5542779,0.00019069,2]
[330949229,1719971442302,-297.70719904,0.00019069,2]
[330949231,1719971442313,-155.71962169,0.00019069,2]
[330949233,1719971442324,-154.81548551,0.00019092,2]
[330949235,1719971442336,-221.13782654,0.00019094,2]
[330949237,1719971442347,-169.36249993,0.00019106,2]
[330949240,1719971442358,-166.66666666,0.00019137,2]
[330949242,1719971442371,-452.91,0.00019168,2]
[330949244,1719971442382,-150.57685201,0.00019176,2]
[330949246,1719971442393,-156.97217318,0.00019177,2]
[330949249,1719971442405,-527.80941214,0.00019177,2]
[330949251,1719971442417,-155.22842668,0.00019177,2]
[330949253,1719971442428,-329.93957042,0.00019177,2]
[330949255,1719971442440,-502.15854825,0.00019177,2]
[330949258,1719971442452,-3213.0,0.00019178,2]
[330949260,1719971442467,-3282.0,0.00019178,2]
[330949263,1719971442479,-22617.31,0.00019178,2]
[330949265,1719971442492,-250.0,0.00019178,2]
[330949267,1719971442504,-166.66666666,0.00019182,2]
[330949270,1719971442517,-155.97260672,0.00019186,2]
[330949272,1719971442529,-348.74721044,0.00019191,2]
[330949275,1719971442542,-152.71946826,0.00019195,2]
[330949277,1719971442558,-166.5,0.00019196,2]
[330949279,1719971442572,-971.5095834,0.00019197,2]
[330949281,1719971442584,-300.28002299,0.00019221,2]
[330949283,1719971442596,-258.17343064,0.00019229,2]
[330949286,1719971442609,-348.74721044,0.00019251,2]
[330949287,1719971442620,-300.28002299,0.00019266,2]
[330949288,1719971442632,-520.45678438,0.00019299,2]
[330949289,1719971442644,-155.0,0.00019299,2]
[330949290,1719971442658,-688.63871007,0.00019327,2]
[330949291,1719971442669,-402.15968401,0.00019352,2]
[330949292,1719971442681,-788.64970258,0.00019354,2]
[330949293,1719971442693,-2196.95469581,0.00019389,2]
[330949294,1719971442705,-155.36596461,0.00019389,2]
[330949295,1719971442717,-152.71946826,0.00019399,2]
[330949296,1719971442728,-221.13782654,0.00019404,2]
[330949297,1719971442740,-7141.40254399,0.00019418,2]
[330949298,1719971442753,-500.0,0.00019428,2]
[330949299,1719971442764,-500.0,0.00019428,2]
[330949300,1719971442776,-151.15970857,0.00019431,2]
[330949301,1719971442787,-2196.95469581,0.00019433,2]
[330949302,1719971442799,-154.81402549,0.00019434,2]
[330949303,1719971442809,-154.81402549,0.00019441,2]
[330949304,1719971442821,-420.61659921,0.00019443,2]
[330949305,1719971442832,-154.81548551,0.00019461,2]
[330949306,1719971442845,-1265.78714914,0.000195,2]
[330949307,1719971442855,-155.97260672,0.00019514,2]
[330949308,1719971442866,-348.74721044,0.00019533,2]
[330949309,1719971442878,-166.5,0.00019541,2]
[330949310,1719971442889,-151.15970857,0.00019542,2]
[330949311,1719971442900,-154.81402549,0.00019543,2]
[330949312,1719971442912,-159.68522026,0.00019565,2]
[330949313,1719971442923,-150.57685201,0.00019569,2]
[330949314,1719971442935,-150.57685201,0.00019584,2]
[330949315,1719971442946,-221.13782654,0.00019586,2]
[330949316,1719971442957,-152.71946826,0.00019587,2]
[330949317,1719971442968,-2196.95469581,0.00019618,2]
[330949318,1719971442979,-151.84144189,0.0001962,2]
[330949319,1719971442990,-154.20267466,0.00019635,2]
[330949320,1719971443001,-221.13782654,0.00019636,2]
[330949321,1719971443012,-935.07,0.00019644,2]
[330949322,1719971443024,-300.28002299,0.00019646,2]
[330949323,1719971443035,-154.20267466,0.00019649,2]
[330949324,1719971443047,-259.8,0.00019672,2]
[330949325,1719971443058,-150.57685201,0.00019686,2]
[330949326,1719971443069,-154.20267466,0.00019749,2]
[330949327,1719971443081,-420.61659921,0.00019755,2]
[330949328,1719971443438,-1152.0,0.00019757,2]
[330949329,1719971443466,-155.97260672,0.00019767,2]
[330949330,1719971443475,-151.84144189,0.0001979,2]
[330949331,1719971443485,-154.81548551,0.00019801,2]
[330949334,1719971443494,-154.78390332,0.00019812,2]
[330949336,1719971443504,-221.13782654,0.00019814,2]
[330949338,1719971443513,-983.0,0.00019834,2]
[330949340,1719971443523,-2196.95469581,0.00019844,2]
[330949342,1719971443533,-213.81795771,0.00019852,3]
[330949343,1719971443542,-688.63871007,0.00019855,2]
[330949344,1719971443551,-1256.8728953,0.00019863,2]
[330949345,1719971443561,-608.71384337,0.00019867,2]
[330949346,1719971443571,-420.61659921,0.00019874,2]
[330949347,1719971443582,-2196.95469581,0.00019881,2]
[330949348,1719971443592,-166.5,0.00019886,2]
[330949349,1719971443602,-159.62594873,0.00019888,2]
[330949350,1719971443612,-221.61,0.0001989,3]
[330949351,1719971443623,-154.81402549,0.00019893,2]
[330949352,1719971443632,-369.79128526,0.00019899,2]
[330949353,1719971443642,-950.3,0.000199,2]
[330949354,1719971443652,-356.0,0.000199,2]
[330949355,1719971443661,-1000.0,0.000199,2]
[330949356,1719971443670,-900.0,0.000199,2]
[330949357,1719971443680,-154.78390332,0.00019906,2]
[330949358,1719971443690,-154.81548551,0.00019913,2]
[330949359,1719971443699,-348.74721044,0.00019921,2]
[330949360,1719971443709,-155.92565945,0.00019922,2]
[330949361,1719971443718,-154.42490601,0.00019929,2]
[330949362,1719971443728,-166.66666665,0.00019937,2]
[330949363,1719971443737,-452.91,0.00019942,2]
[330949364,1719971443746,-951.0,0.00019947,2]
[330949365,1719971443756,-154.90651703,0.0001995,2]
[330949366,1719971443766,-1658.0,0.00019952,2]
[330949367,1719971443777,-1830.0,0.00019952,2]
[330949368,1719971443786,-804.432,0.00019952,2]
[330949369,1719971443794,-449.0,0.00019952,2]
[330949370,1719971443803,-1304.0,0.00019952,2]
[330949371,1719971443812,-2416.0,0.00019952,2]
[330949372,1719971443821,-3206.0,0.00019952,2]
[330949373,1719971443830,-548.0,0.00019952,2]
[330949374,1719971443840,-1987.0,0.00019952,2]
[330949375,1719971443849,-283.0,0.00019952,2]
[330949376,1719971443859,-5809.0,0.00019952,2]
[330949377,1719971443868,-1198.0,0.00019952,2]
[330949378,1719971443878,-5176.0,0.00019952,2]
[330949379,1719971443887,-1663.0,0.00019952,2]
[330949380,1719971443896,-291.0,0.00019952,2]
[330949381,1719971443906,-25186.33,0.00019952,2]
[330949382,1719971443916,-396.55485672,0.00019964,2]
[330949383,1719971443926,-155.1437021,0.00019964,2]
[330949384,1719971443936,-155.32726912,0.00019964,2]
[330949385,1719971443946,-934.0326335,0.00019965,2]
[330949386,1719971443955,-151.36240956,0.00019973,2]
[330949387,1719971443964,-688.63871007,0.00019985,2]
[330949388,1719971443974,-438.43353309,0.0001999,2]
[330949389,1719971443983,-452.91,0.0001999,2]
[330949390,1719971443993,-544.6250011,0.00019997,2]
[330949391,1719971444002,-544.6250011,0.00019997,2]
[330949392,1719971444012,-155.0,0.00019998,2]
[330949393,1719971444021,-1364.34073545,0.0002,5]
[330949394,1719971444032,-150.0,0.0002,2]
[330949395,1719971444041,-775.99845252,0.0002,2]
[330949396,1719971444050,-775.99845252,0.0002,2]
[330949397,1719971444059,-775.99845252,0.0002,2]
[330949398,1719971444068,-775.99845252,0.0002,2]
[330949399,1719971444078,-775.99845252,0.0002,2]
[330949400,1719971444087,-775.99845252,0.0002,2]
[330949401,1719971444097,-775.99845252,0.0002,2]
[330949402,1719971444107,-775.99845252,0.0002,2]
[330949403,1719971444117,-775.99845252,0.0002,2]
[330949404,1719971444126,-775.99845252,0.0002,2]
[330949405,1719971444135,-775.99845252,0.0002,2]
[330949407,1719971444145,-775.99845252,0.0002,2]
[330949409,1719971444155,-775.99845252,0.0002,2]
[330949411,1719971444164,-775.99845252,0.0002,2]
[330949413,1719971444174,-775.99845252,0.0002,2]
[330949414,1719971444183,-775.99845252,0.0002,2]
[330949416,1719971444193,-775.99845252,0.0002,2]
[330949417,1719971444203,-775.99845252,0.0002,2]
[330949418,1719971444213,-775.99845252,0.0002,2]
[330949419,1719971444222,-775.99845252,0.0002,2]
[330949420,1719971444232,-775.99845252,0.0002,2]
[330949421,1719971444242,-775.99845252,0.0002,2]
[330949422,1719971444251,-775.99845252,0.0002,2]
[330949423,1719971444261,-775.99845252,0.0002,2]
[330949424,1719971444271,-775.99845252,0.0002,2]
[330949425,1719971444281,-775.99845252,0.0002,2]
[330949426,1719971444290,-775.99845252,0.0002,2]
[330949427,1719971444299,-775.99845252,0.0002,2]
[330949428,1719971444308,-775.99845252,0.0002,2]
[330949429,1719971444317,-775.99845252,0.0002,2]
[330949430,1719971444327,-775.99845252,0.0002,2]
[330949431,1719971444337,-775.99845252,0.0002,2]
[330949432,1719971444347,-775.99845252,0.0002,2]
[330949434,1719971444358,-775.99845252,0.0002,2]
[330949435,1719971444369,-775.99845252,0.0002,2]
[330949436,1719971444379,-775.99845252,0.0002,2]
[330949437,1719971444389,-775.99845252,0.0002,2]
[330949438,1719971444399,-775.99845252,0.0002,2]
[330949439,1719971444409,-775.99845252,0.0002,2]
[330949440,1719971444419,-775.99845252,0.0002,2]
[330949441,1719971444428,-775.99845252,0.0002,2]
[330949442,1719971444438,-775.99845252,0.0002,2]
[330949443,1719971444447,-775.99845252,0.0002,2]
[330949444,1719971444457,-775.99845252,0.0002,2]
[330949445,1719971444466,-775.99845252,0.0002,2]
[330949446,1719971444476,-775.99845252,0.0002,2]
[330949447,1719971444486,-775.99845252,0.0002,2]
[330949448,1719971444495,-775.99845252,0.0002,2]
[330949449,1719971444505,-775.99845252,0.0002,2]
[330949450,1719971444515,-775.99845252,0.0002,2]
[330949451,1719971444525,-775.99845252,0.0002,2]
[330949452,1719971444534,-775.99845252,0.0002,2]
[330949454,1719971444544,-775.99845252,0.0002,2]
[330949455,1719971444553,-775.99845252,0.0002,2]
[330949456,1719971444567,-775.99845252,0.0002,2]
[330949457,1719971444576,-775.99845252,0.0002,2]
[330949458,1719971444586,-775.99845252,0.0002,2]
[330949459,1719971444596,-775.99845252,0.0002,2]
[330949460,1719971444606,-775.99845252,0.0002,2]
[330949461,1719971444616,-775.99845252,0.0002,2]
[330949462,1719971444626,-775.99845252,0.0002,2]
[330949463,1719971444636,-775.99845252,0.0002,2]
[330949464,1719971444646,-775.99845252,0.0002,2]
[330949465,1719971444657,-209.57326322,0.0002,2]
[330949466,1719971444676,-566.4251893,0.0002,2]
[330949467,1719971444686,-775.99845252,0.0002,2]
[330949468,1719971444695,-775.99845252,0.0002,2]
[330949469,1719971444704,-775.99845252,0.0002,2]
[330949470,1719971444714,-775.99845252,0.0002,2]
[330949471,1719971444724,-775.99845252,0.0002,2]
[330949472,1719971444734,-775.99845252,0.0002,2]
[330949473,1719971444744,-775.99845252,0.0002,2]
[330949474,1719971444753,-775.99845252,0.0002,2]
[330949475,1719971444763,-775.99845252,0.0002,2]
[330949476,1719971444772,-775.99845252,0.0002,2]
[330949477,1719971444782,-775.99845252,0.0002,2]
[330949478,1719971444792,-775.99845252,0.0002,2]
[330949479,1719971444802,-775.99845252,0.0002,2]
[330949480,1719971444813,-775.99845252,0.0002,2]
[330949481,1719971444822,-775.99845252,0.0002,2]
[330949482,1719971444831,-775.99845252,0.0002,2]
[330949483,1719971444841,-150.57685201,0.0002,2]
[330949484,1719971444851,-786.181113,0.0002,2]
[330949485,1719971444861,-621.53779318,0.0002,2]
[330949486,1719971444871,-348.74721044,0.00020003,2]
[330949487,1719971444880,-420.61659921,0.00020028,2]
[330949488,1719971444890,-154.42490601,0.00020048,2]
[330949489,1719971444899,-348.74721044,0.00020055,2]
[330949490,1719971444909,-150.47252417,0.00020059,2]
[330949491,1719971444918,-420.61659921,0.00020059,2]
[330949492,1719971444928,-7141.40254399,0.00020064,2]
[330949493,1719971444937,-166.66666666,0.00020067,2]
[330949494,1719971444947,-608.71384337,0.00020069,2]